bitfinex/quotes_BTCUSD_20230904
["timestamp","ask_amount","ask_price","bid_price","bid_amount"]
[1693853121923,0.04321385,25921.0,25920.0,1.73751814]
[1693853122095,0.04321385,25921.0,25920.0,1.73907814]
[1693853122299,0.04321385,25921.0,25920.0,1.73901814]
[1693853122525,0.04321385,25921.0,25920.0,1.73571814]
[1693853122653,0.04321385,25921.0,25920.0,1.71921814]
[1693853122860,0.04321385,25921.0,25920.0,1.71963814]
[1693853123072,0.04321385,25921.0,25920.0,1.71981814]
[1693853123267,0.04321385,25921.0,25920.0,1.2710131]
[1693853123470,0.04321385,25921.0,25920.0,1.1633131]
[1693853123891,0.0728783,25921.0,25920.0,1.1633131]
[1693853130910,0.0728783,25921.0,25920.0,1.05322058]
[1693853132855,0.34524672,25921.0,25920.0,1.05322058]
[1693853133102,0.34524672,25921.0,25920.0,0.77666783]
[1693853133301,0.35366274,25921.0,25920.0,0.77666783]
[1693853133527,0.08129432,25921.0,25920.0,0.77666783]
[1693853133747,0.08129432,25921.0,25920.0,1.05322058]
[1693853134485,0.08129432,25921.0,25920.0,0.77666783]
[1693853134812,0.08129432,25921.0,25920.0,1.16163745]
[1693853136907,0.08129432,25921.0,25920.0,0.68896962]
[1693853137132,0.08129432,25921.0,25920.0,0.64318]
[1693853138910,0.35534526,25921.0,25920.0,0.45832]
[1693853139202,0.35534526,25921.0,25920.0,0.23548]
[1693853139404,0.35534526,25921.0,25920.0,0.46666541]
[1693853139608,0.35534526,25921.0,25920.0,0.38950541]
[1693853139813,0.35534526,25921.0,25920.0,0.57446895]
[1693853140016,0.35534526,25921.0,25920.0,0.26612354]
[1693853140197,0.35534526,25921.0,25920.0,0.40486837]
[1693853140394,0.35534526,25921.0,25920.0,0.14274483]
[1693853140395,0.34333332,25921.0,25920.0,0.14274483]
[1693853140596,0.60205836,25921.0,25920.0,0.14274483]
[1693853140773,1.21490832,25921.0,25920.0,0.14274483]
[1693853140979,1.44809562,25921.0,25920.0,0.09649837]
[1693853142138,1.44809562,25921.0,25920.0,0.004]
[1693853146156,0.67652062,25921.0,25920.0,0.004]
[1693853159975,0.67652062,25921.0,25920.0,0.08116]
[1693853171704,0.65652062,25921.0,25920.0,0.08116]
[1693853173039,0.54882062,25921.0,25920.0,0.08116]
[1693853178239,0.54882062,25921.0,25920.0,0.17365837]
[1693853178441,0.54882062,25921.0,25920.0,0.08116]
[1693853181417,0.54882062,25921.0,25920.0,0.17365837]
[1693853181811,0.54882062,25921.0,25920.0,0.08116]
[1693853182010,0.54882062,25921.0,25920.0,0.17365837]
[1693853184132,0.54882062,25921.0,25920.0,0.3124032]
[1693853185123,0.54882062,25921.0,25920.0,0.21990483]
[1693853185754,0.31563332,25921.0,25920.0,0.21990483]
[1693853185979,0.16129432,25921.0,25920.0,0.21990483]
[1693853186177,0.16129432,25921.0,25920.0,0.40486837]
[1693853186395,0.16129432,25921.0,25920.0,0.26612354]
[1693853188728,0.16129432,25921.0,25920.0,0.42044354]
[1693853189181,0.15629432,25921.0,25920.0,0.42044354]
[1693853191039,0.15629432,25921.0,25920.0,0.55933678]
[1693853191243,0.15629432,25921.0,25920.0,0.42044354]
[1693853192025,0.15629432,25921.0,25920.0,0.55933612]
[1693853193616,0.09629432,25921.0,25920.0,0.42044354]
[1693853196148,0.07629432,25921.0,25920.0,0.52814354]
[1693853196359,0.07629432,25921.0,25920.0,0.63934541]
[1693853196562,0.07629432,25921.0,25920.0,0.64528541]
[1693853196764,0.07629432,25921.0,25920.0,0.64078541]
[1693853196996,0.07629432,25921.0,25920.0,0.64006541]
[1693853197202,0.03821385,25921.0,25920.0,0.57436541]
[1693853197313,0.07774653,25921.0,25920.0,0.57436541]
[1693853201009,0.07774653,25921.0,25920.0,1.04507068]
[1693853201196,0.07774653,25921.0,25920.0,1.04969068]
[1693853201457,0.07774653,25921.0,25920.0,1.04825068]
[1693853201658,0.03821385,25921.0,25920.0,1.04813068]
[1693853201867,0.03821385,25921.0,25920.0,1.04849068]
[1693853202078,0.03821385,25921.0,25920.0,1.04831068]
[1693853202280,0.03821385,25921.0,25920.0,1.04813068]
[1693853202481,0.03821385,25921.0,25920.0,1.05101068]
[1693853202657,0.03821385,25921.0,25920.0,1.05173068]
[1693853202898,0.03821385,25921.0,25920.0,1.05167068]
[1693853203078,0.07780031,25921.0,25920.0,1.04825068]
[1693853203277,0.07780031,25921.0,25920.0,1.04831068]
[1693853203522,0.07780031,25921.0,25920.0,1.04801068]
[1693853203746,0.07780031,25921.0,25920.0,1.04783068]
[1693853204033,0.07780031,25921.0,25920.0,1.04753068]
[1693853204263,0.07780031,25921.0,25920.0,1.04567068]
[1693853204465,0.07780031,25921.0,25920.0,1.04561068]
[1693853204599,0.07780031,25921.0,25920.0,1.04531068]
[1693853205017,0.07780031,25921.0,25920.0,1.04693068]
[1693853205396,0.07780031,25921.0,25920.0,1.04675068]
[1693853205606,0.07780031,25921.0,25920.0,1.04705068]
[1693853205818,0.03821385,25921.0,25920.0,1.04699068]
[1693853206015,0.03821385,25921.0,25920.0,1.04693068]
[1693853206225,0.03821385,25921.0,25920.0,1.04717068]
[1693853206450,0.03821385,25921.0,25920.0,1.04741068]
[1693853206762,0.03821385,25921.0,25920.0,1.04813068]
[1693853206925,0.03821385,25921.0,25920.0,1.04693068]
[1693853207362,0.03821385,25921.0,25920.0,1.04687068]
[1693853207568,0.03821385,25921.0,25920.0,1.04699068]
[1693853207771,0.03821385,25921.0,25920.0,1.04681068]
[1693853207974,0.03821385,25921.0,25920.0,1.04669068]
[1693853208173,0.03821385,25921.0,25920.0,1.04663068]
[1693853208380,0.03821385,25921.0,25920.0,1.04657068]
[1693853208578,0.03821385,25921.0,25920.0,1.04645068]
[1693853208777,0.03821385,25921.0,25920.0,1.04579068]
[1693853208980,0.03821385,25921.0,25920.0,1.04573068]
[1693853209218,0.03821385,25921.0,25920.0,1.04567068]
[1693853209352,0.03821385,25921.0,25920.0,1.04573068]
[1693853209559,0.03821385,25921.0,25920.0,0.81448527]
[1693853209779,0.03821385,25921.0,25920.0,0.81442527]
[1693853209977,0.03821385,25921.0,25920.0,0.81436527]
[1693853210181,0.03821385,25921.0,25920.0,0.81424527]
[1693853210504,0.03821385,25921.0,25920.0,0.81382527]
[1693853210706,0.03821385,25921.0,25920.0,0.81388527]
[1693853210908,0.03821385,25921.0,25920.0,0.81334527]
[1693853211110,0.03821385,25921.0,25920.0,0.81328527]
[1693853211508,0.03821385,25921.0,25920.0,1.04239894]
[1693853211709,0.03821385,25921.0,25920.0,0.96097894]
[1693853212113,0.07780031,25921.0,25920.0,0.96097894]
[1693853212609,0.07780031,25921.0,25920.0,0.46663367]
[1693853215224,0.07780031,25921.0,25920.0,0.42038977]
[1693853216197,0.07780031,25921.0,25920.0,0.65154344]
[1693853217510,0.36817359,25921.0,25920.0,0.65154344]
[1693853218357,0.36817359,25921.0,25920.0,0.42038977]
[1693853219795,0.36817359,25921.0,25920.0,0.55908262]
[1693853222749,0.36817359,25921.0,25920.0,0.48192262]
[1693853222980,0.36817359,25921.0,25920.0,0.32760262]
[1693853223514,0.36817359,25921.0,25920.0,0.40476262]
[1693853226082,0.36817359,25921.0,25920.0,0.26606977]
[1693853226463,0.36817359,25921.0,25920.0,0.32763009]
[1693853227092,0.36817359,25921.0,25920.0,0.18890977]
[1693853227647,0.36817359,25921.0,25920.0,0.32763761]
[1693853228768,0.36817359,25921.0,25920.0,0.14272784]
[1693853231922,1.13974859,25921.0,25920.0,0.14272784]
[1693853236020,1.13974859,25921.0,25920.0,0.32763761]
[1693853236234,1.13974859,25921.0,25920.0,0.14272784]
[1693853237162,0.84937531,25921.0,25920.0,0.14272784]
[1693853237369,3.04687058,25921.0,25920.0,0.09654694]
[1693853237566,3.04687058,25921.0,25920.0,0.004]
[1693853237931,3.2980203,25921.0,25920.0,0.004]
[1693853243455,2.91137503,25921.0,25920.0,0.004]
[1693853243749,2.91137503,25921.0,25920.0,1.30049705]
[1693853243750,0.06358646,25921.0,25920.0,1.30049705]
[1693853243962,0.01421385,25924.0,25920.0,1.40792551]
[1693853244179,0.01421385,25925.0,25923.0,0.41593276]
[1693853244381,0.0197,25928.0,25923.0,0.23107376]
[1693853244382,0.01421385,25924.0,25923.0,0.23107376]
[1693853244601,0.01421385,25924.0,25923.0,0.71592476]
[1693853244807,0.01421385,25924.0,25923.0,0.84828476]
[1693853245014,0.01421385,25925.0,25923.0,1.54527403]
[1693853245218,0.01521385,25924.0,25923.0,1.04858876]
[1693853245424,0.01521385,25924.0,25923.0,1.13560876]
[1693853245627,0.01521385,25924.0,25923.0,1.02452876]
[1693853245835,0.01521385,25924.0,25923.0,1.13108876]
[1693853246064,0.01521385,25924.0,25923.0,1.14064876]
[1693853246271,0.01521385,25924.0,25923.0,1.32338327]
[1693853246476,0.01421385,25924.0,25923.0,1.32194327]
[1693853246678,0.01421385,25924.0,25923.0,1.70834854]
[1693853246888,0.01521385,25924.0,25923.0,1.70992854]
[1693853247094,0.01521385,25924.0,25923.0,1.71250854]
[1693853247319,0.01521385,25924.0,25923.0,1.71292854]
[1693853247532,0.01521385,25924.0,25923.0,1.71064854]
[1693853247752,0.01521385,25924.0,25923.0,1.70998854]
[1693853247958,0.01521385,25924.0,25923.0,1.70626854]
[1693853248137,0.01521385,25924.0,25923.0,1.47489478]
[1693853248340,0.01521385,25924.0,25923.0,1.47051478]
[1693853248558,0.01521385,25924.0,25923.0,1.46469478]
[1693853248759,0.01521385,25924.0,25923.0,1.45491478]
[1693853248961,0.01521385,25924.0,25923.0,1.45443478]
[1693853249137,0.01521385,25924.0,25923.0,1.45437478]
[1693853249347,0.01521385,25924.0,25923.0,1.45431478]
[1693853249546,0.01521385,25924.0,25923.0,1.45359478]
[1693853249746,0.01521385,25924.0,25923.0,1.45491478]
[1693853249949,0.01521385,25924.0,25923.0,1.45485478]
[1693853250145,0.01521385,25924.0,25923.0,1.45479478]
[1693853250329,0.01521385,25924.0,25923.0,1.45395478]
[1693853250669,0.01521385,25924.0,25923.0,1.45329478]
[1693853250909,0.01521385,25924.0,25923.0,1.45317478]
[1693853251113,0.01521385,25924.0,25923.0,1.45893478]
[1693853251332,0.01521385,25924.0,25923.0,1.45941478]
[1693853251544,0.01521385,25924.0,25923.0,1.45959478]
[1693853251752,0.01521385,25924.0,25923.0,1.45953478]
[1693853251906,0.01521385,25924.0,25923.0,1.45857478]
[1693853252113,0.01521385,25924.0,25923.0,1.45845478]
[1693853252459,0.01521385,25924.0,25923.0,1.45833478]
[1693853252661,0.01521385,25924.0,25923.0,1.59614668]
[1693853252867,0.01521385,25924.0,25923.0,1.59608668]
[1693853253066,0.01521385,25924.0,25923.0,1.45797478]
[1693853253272,0.01521385,25924.0,25923.0,1.45821478]
[1693853253493,0.01521385,25924.0,25923.0,1.45809478]
[1693853253704,0.01521385,25924.0,25923.0,1.45761478]
[1693853253917,0.01521385,25924.0,25923.0,1.45635478]
[1693853254091,0.01521385,25924.0,25923.0,1.44579478]
[1693853254292,0.01521385,25924.0,25923.0,1.44549478]
[1693853254447,0.01521385,25924.0,25923.0,1.44543478]
[1693853254644,0.01521385,25924.0,25923.0,1.44303478]
[1693853254863,0.01521385,25924.0,25923.0,1.44447478]
[1693853255062,0.01521385,25924.0,25923.0,1.44339478]
[1693853255283,0.01521385,25924.0,25923.0,1.44321478]
[1693853255483,0.01521385,25924.0,25923.0,1.44315478]
[1693853255807,0.01521385,25924.0,25923.0,1.43739478]
[1693853256016,0.01521385,25924.0,25923.0,1.43733478]
[1693853256223,0.03909293,25924.0,25923.0,1.43733478]
[1693853256434,0.03909293,25924.0,25923.0,1.43727478]
[1693853256628,0.03909293,25924.0,25923.0,1.43763478]
[1693853256835,0.03909293,25924.0,25923.0,1.43925478]
[1693853257033,0.03909293,25924.0,25923.0,1.43919478]
[1693853257441,0.03909293,25924.0,25923.0,1.43913478]
[1693853257662,0.0197,25928.0,25923.0,1.52353289]
[1693853257865,0.0197,25928.0,25927.0,0.19348587]
[1693853258077,0.0197,25928.0,25927.0,1.3141991]
[1693853258286,0.0197,25928.0,25927.0,1.59498897]
[1693853258516,0.0197,25928.0,25927.0,1.1312047]
[1693853258722,0.0197,25928.0,25927.0,0.74685616]
[1693853258987,0.0197,25928.0,25927.0,0.83906339]
[1693853259143,0.0197,25928.0,25927.0,0.74885616]
[1693853259144,0.0207,25928.0,25927.0,0.74885616]
[1693853259348,0.04332799,25928.0,25927.0,0.8410462]
[1693853260378,0.04332799,25928.0,25927.0,0.8430462]
[1693853261833,0.04332799,25928.0,25927.0,0.70474604]
[1693853262016,0.04332799,25928.0,25927.0,0.8430462]
[1693853262178,0.04332799,25928.0,25927.0,0.9178662]
[1693853262570,0.0207,25928.0,25927.0,0.9178662]
[1693853262861,0.0207,25928.0,25927.0,0.9175662]
[1693853263188,0.0207,25928.0,25927.0,0.77932604]
[1693853263391,0.0207,25928.0,25927.0,0.9176862]
[1693853263597,0.0207,25928.0,25927.0,1.32185147]
[1693853263851,0.0207,25928.0,25927.0,1.63776997]
[1693853264069,0.0207,25928.0,25927.0,1.39706222]
[1693853264212,0.0207,25928.0,25927.0,1.38458222]
[1693853264411,0.0207,25928.0,25927.0,1.38554222]
[1693853264612,0.0207,25928.0,25927.0,1.38530222]
[1693853264840,0.0207,25928.0,25927.0,1.38494222]
[1693853265049,0.0207,25928.0,25927.0,1.38476222]
[1693853265194,0.0207,25928.0,25927.0,1.38428222]
[1693853265401,0.0207,25928.0,25927.0,1.38344222]
[1693853265607,0.0207,25928.0,25927.0,1.53910587]
[1693853265806,0.0207,25928.0,25927.0,1.50718587]
[1693853266040,0.0207,25928.0,25927.0,1.50760587]
[1693853266266,0.0207,25928.0,25927.0,1.50658587]
[1693853266467,0.0207,25928.0,25927.0,1.36658222]
[1693853266672,0.0207,25928.0,25927.0,1.26086222]
[1693853266893,0.0207,25928.0,25927.0,1.26080222]
[1693853267187,0.0207,25928.0,25927.0,1.39502289]
[1693853267395,0.0207,25928.0,25927.0,1.39982289]
[1693853267599,0.0207,25928.0,25927.0,1.40108289]
[1693853267799,0.0207,25928.0,25927.0,1.40096289]
[1693853268123,0.0207,25928.0,25927.0,1.26260222]
[1693853268319,0.0207,25928.0,25927.0,1.26248222]
[1693853268656,0.0207,25928.0,25927.0,1.40047174]
[1693853268785,0.0207,25928.0,25927.0,1.40041174]
[1693853268989,0.0207,25928.0,25927.0,1.40005923]
[1693853269190,0.0207,25928.0,25927.0,1.40011923]
[1693853269410,0.0207,25928.0,25927.0,1.40185923]
[1693853269687,0.0207,25928.0,25927.0,1.40179923]
[1693853269887,0.0207,25928.0,25927.0,1.26356222]
[1693853270095,0.0207,25928.0,25927.0,1.40167032]
[1693853270307,0.0207,25928.0,25927.0,1.71506874]
[1693853270502,0.0207,25928.0,25927.0,1.72322874]
[1693853270700,0.0207,25928.0,25927.0,1.71782874]
[1693853270923,0.0207,25928.0,25927.0,1.71038874]
[1693853271155,0.0207,25928.0,25927.0,1.89114037]
[1693853271355,0.0207,25928.0,25927.0,1.70846874]
[1693853271607,0.0207,25928.0,25927.0,1.70018874]
[1693853271787,0.0207,25928.0,25927.0,1.68926874]
[1693853271961,0.0207,25928.0,25927.0,1.54238874]
[1693853272182,0.0207,25928.0,25927.0,1.54184874]
[1693853272353,0.0207,25928.0,25927.0,1.54286874]
[1693853272559,0.0207,25928.0,25927.0,1.70450874]
[1693853272840,0.0207,25928.0,25927.0,1.68134874]
[1693853273047,0.0207,25928.0,25927.0,1.67943739]
[1693853273248,0.0207,25928.0,25927.0,1.67715739]
[1693853273452,0.0207,25928.0,25927.0,1.67727739]
[1693853273655,0.0207,25928.0,25927.0,1.54581739]
[1693853273863,0.00099269,25930.0,25929.0,0.16578587]
[1693853274074,0.00099269,25930.0,25929.0,1.47922327]
[1693853274299,0.0198,25932.0,25931.0,0.14578587]
[1693853274510,0.0198,25932.0,25931.0,1.43260885]
[1693853274687,0.0198,25932.0,25931.0,1.50973585]
[1693853274914,0.0198,25932.0,25931.0,1.76917585]
[1693853275135,0.0198,25932.0,25931.0,1.79053585]
[1693853275363,0.0198,25932.0,25931.0,1.65859585]
[1693853275566,0.0198,25932.0,25931.0,1.65115585]
[1693853275764,0.0198,25932.0,25931.0,1.65895585]
[1693853276205,0.0198,25932.0,25931.0,1.65649585]
[1693853276417,0.0198,25932.0,25931.0,1.65631585]
[1693853276637,0.0198,25932.0,25931.0,1.65229585]
[1693853276882,0.0197,25934.0,25931.0,1.85737585]
[1693853277093,0.0197,25934.0,25933.0,0.19966058]
[1693853277293,0.0197,25934.0,25933.0,1.27191085]
[1693853277517,0.0197,25934.0,25933.0,1.54299085]
[1693853277734,0.0197,25934.0,25933.0,1.72701172]
[1693853277958,0.0197,25934.0,25933.0,1.73181172]
[1693853278171,0.0197,25934.0,25933.0,1.72449172]
[1693853278402,0.0197,25934.0,25933.0,1.69857172]
[1693853278675,0.0197,25934.0,25933.0,1.71549172]
[1693853278909,0.0197,25934.0,25933.0,1.61261114]
[1693853279119,0.0197,25934.0,25933.0,1.70130876]
[1693853279323,0.0197,25934.0,25933.0,1.60397114]
[1693853279524,0.0197,25934.0,25933.0,1.61249114]
[1693853279730,0.0197,25934.0,25933.0,1.61621114]
[1693853279935,0.0197,25934.0,25933.0,1.68714189]
[1693853280136,0.0197,25934.0,25933.0,1.31681114]
[1693853280340,0.0197,25934.0,25933.0,1.31351114]
[1693853280541,0.0197,25934.0,25933.0,1.31147114]
[1693853280749,0.0197,25934.0,25933.0,1.31339114]
[1693853280952,0.0197,25934.0,25933.0,1.60697114]
[1693853281157,0.0197,25934.0,25933.0,1.89037447]
[1693853281358,0.0197,25934.0,25933.0,1.7479936]
[1693853281537,0.0197,25934.0,25933.0,1.7471536]
[1693853281762,0.0197,25934.0,25933.0,1.97579573]
[1693853281968,0.0197,25934.0,25933.0,1.79212602]
[1693853282168,0.0197,25934.0,25933.0,1.79218602]
[1693853282402,0.0197,25934.0,25933.0,1.79368602]
[1693853282601,0.0197,25934.0,25933.0,1.79752602]
[1693853282803,0.0197,25934.0,25933.0,1.93900602]
[1693853283018,0.0197,25934.0,25933.0,1.94824602]
[1693853283226,0.0197,25934.0,25933.0,1.94944602]
[1693853283400,0.0197,25934.0,25933.0,1.95088602]
[1693853283919,0.0197,25934.0,25933.0,1.94284602]
[1693853284085,0.0197,25934.0,25933.0,1.94680602]
[1693853284266,0.0197,25934.0,25933.0,1.94920602]
[1693853284470,0.0197,25934.0,25933.0,1.95928602]
[1693853284671,0.0197,25934.0,25933.0,1.96348602]
[1693853284873,0.0197,25934.0,25933.0,1.96072602]
[1693853285092,0.0197,25934.0,25933.0,1.72116389]
[1693853285304,0.0197,25934.0,25933.0,1.72056389]
[1693853285495,0.0197,25934.0,25933.0,1.72020389]
[1693853285725,0.0197,25934.0,25933.0,1.72032389]
[1693853285904,0.0197,25934.0,25933.0,1.72620389]
[1693853286098,0.0197,25934.0,25933.0,1.73568389]
[1693853286334,0.0197,25934.0,25933.0,1.73652389]
[1693853286529,0.0197,25934.0,25933.0,1.73580389]
[1693853286761,0.0197,25934.0,25933.0,1.73556389]
[1693853286932,0.0197,25934.0,25933.0,1.73532389]
[1693853287152,0.0197,25934.0,25933.0,1.72980389]
[1693853287362,0.0197,25934.0,25933.0,1.72356389]
[1693853287703,0.0197,25934.0,25933.0,1.73640389]
[1693853287859,0.0197,25934.0,25933.0,1.73616389]
[1693853288060,0.0197,25934.0,25933.0,1.73964389]
[1693853288261,0.0197,25934.0,25933.0,2.00592867]
[1693853288458,0.0197,25934.0,25933.0,2.00076867]
[1693853288706,0.0197,25934.0,25933.0,2.01676867]
[1693853288921,0.0197,25934.0,25933.0,1.73656389]
[1693853289131,0.0197,25934.0,25933.0,2.00668867]
[1693853289339,0.0197,25934.0,25933.0,2.01352867]
[1693853289538,0.0197,25934.0,25933.0,2.01364867]
[1693853289741,0.0197,25934.0,25933.0,2.01376867]
[1693853289976,0.0197,25934.0,25933.0,2.01016867]
[1693853290170,0.0197,25934.0,25933.0,2.01004867]
[1693853290364,0.0197,25934.0,25933.0,2.03504867]
[1693853290604,0.0197,25934.0,25933.0,2.03936867]
[1693853290786,0.03391385,25938.0,25934.0,0.13999972]
[1693853290991,0.23741385,25938.0,25937.0,0.41406669]
[1693853291203,0.23741385,25938.0,25937.0,0.87067491]
[1693853291429,0.03391385,25938.0,25937.0,0.87067491]
[1693853292463,0.05505209,25938.0,25937.0,0.87067491]
[1693853292664,0.05505209,25938.0,25937.0,1.07787596]
[1693853292875,0.05505209,25938.0,25937.0,1.07727596]
[1693853293076,0.05505209,25938.0,25937.0,1.07841596]
[1693853293278,0.05505209,25938.0,25937.0,1.00869596]
[1693853293492,0.03391385,25938.0,25937.0,1.00869596]
[1693853293903,0.29187334,25938.0,25937.0,0.43802105]
[1693853294106,0.39957334,25938.0,25937.0,0.09202119]
[1693853294488,0.4206985,25938.0,25937.0,0.09202119]
[1693853299427,0.4206985,25938.0,25937.0,0.32334819]
[1693853300238,0.4206985,25938.0,25937.0,0.231327]
[1693853305517,0.44980305,25938.0,25937.0,0.154218]
[1693853308424,0.44980305,25938.0,25937.0,0.231327]
[1693853310740,0.34210305,25938.0,25937.0,0.231327]
[1693853310964,0.05503901,25938.0,25937.0,0.314367]
[1693853311163,0.05503901,25938.0,25937.0,1.0335934]
[1693853311543,0.03391385,25938.0,25937.0,0.89830149]
[1693853311687,0.03391385,25938.0,25937.0,0.89764149]
[1693853311883,0.03391385,25938.0,25937.0,0.89914149]
[1693853312102,0.03391385,25938.0,25937.0,0.89878149]
[1693853312302,0.03391385,25938.0,25937.0,0.36965355]
[1693853312303,0.2506866,25938.0,25937.0,0.36965355]
[1693853312598,0.3583866,25938.0,25937.0,0.46187549]
[1693853312704,0.38193784,25938.0,25937.0,0.46187549]
[1693853315236,0.38193784,25938.0,25937.0,0.46192553]
[1693853315418,0.05746509,25938.0,25937.0,0.36400255]
[1693853315621,0.05746509,25938.0,25937.0,0.36394255]
[1693853315832,0.05746509,25938.0,25937.0,0.36280255]
[1693853316266,0.05746509,25938.0,25937.0,0.36466255]
[1693853316448,0.05746509,25938.0,25937.0,0.36034255]
[1693853316707,0.05746509,25938.0,25937.0,0.29254255]
[1693853319205,0.05746509,25938.0,25937.0,1.04135701]
[1693853319362,0.05746509,25938.0,25937.0,1.04255701]
[1693853319563,0.05746509,25938.0,25937.0,1.04345701]
[1693853319765,0.05746509,25938.0,25937.0,0.81171049]
[1693853319988,0.05746509,25938.0,25937.0,0.81129049]
[1693853320193,0.05746509,25938.0,25937.0,0.81057049]
[1693853320394,0.05746509,25938.0,25937.0,0.81039049]
[1693853320597,0.05746509,25938.0,25937.0,0.80985049]
[1693853320798,0.05746509,25938.0,25937.0,0.80961049]
[1693853321000,0.05746509,25938.0,25937.0,0.80955049]
[1693853321195,0.05746509,25938.0,25937.0,0.80937049]
[1693853321400,0.05746509,25938.0,25937.0,0.80847049]
[1693853321599,0.05746509,25938.0,25937.0,0.80811049]
[1693853321827,0.05746509,25938.0,25937.0,0.80259049]
[1693853322003,0.03391385,25938.0,25937.0,0.80265049]
[1693853322207,0.03391385,25938.0,25937.0,0.80223049]
[1693853322409,0.03391385,25938.0,25937.0,0.80169049]
[1693853322744,0.03391385,25938.0,25937.0,0.80217049]
[1693853322953,0.03391385,25938.0,25937.0,0.80193049]
[1693853323151,0.03391385,25938.0,25937.0,0.80169049]
[1693853323488,0.03391385,25938.0,25937.0,0.82389049]
[1693853323665,0.03391385,25938.0,25937.0,0.83577049]
[1693853323871,0.0581211,25938.0,25937.0,0.83205049]
[1693853324105,0.0581211,25938.0,25937.0,1.07285701]
[1693853324306,0.03391385,25938.0,25937.0,0.84261049]
[1693853324512,0.03391385,25938.0,25937.0,0.84255049]
[1693853324684,0.0197,25938.0,25937.0,0.99196779]
[1693853324890,0.0197,25938.0,25937.0,1.14664779]
[1693853325090,0.03391385,25938.0,25937.0,1.00636779]
[1693853325298,0.03391385,25938.0,25937.0,1.14124779]
[1693853325499,0.03391385,25938.0,25937.0,1.00354779]
[1693853325702,0.03391385,25938.0,25937.0,0.88780779]
[1693853325877,0.03391385,25938.0,25937.0,0.88798779]
[1693853326073,0.03391385,25938.0,25937.0,0.88744779]
[1693853326278,0.0197,25938.0,25937.0,0.88720779]
[1693853326503,0.0197,25938.0,25937.0,0.89920779]
[1693853326704,0.0197,25938.0,25937.0,0.89332779]
[1693853326903,0.0197,25938.0,25937.0,0.89122779]
[1693853327108,0.03391385,25938.0,25937.0,0.88618779]
[1693853327312,0.03391385,25938.0,25937.0,0.87970779]
[1693853327516,0.03391385,25938.0,25937.0,0.88090779]
[1693853327709,0.03391385,25938.0,25937.0,0.88108779]
[1693853328032,0.03391385,25938.0,25937.0,0.87784779]
[1693853328186,0.03391385,25938.0,25937.0,1.05857031]
[1693853328393,0.03391385,25938.0,25937.0,0.80246379]
[1693853328746,0.03391385,25938.0,25937.0,0.7484394]
[1693853328946,0.03391385,25938.0,25937.0,0.7461594]
[1693853329137,0.05854585,25938.0,25937.0,0.7492194]
[1693853329321,0.05854585,25938.0,25937.0,0.7487994]
[1693853329521,0.05854585,25938.0,25937.0,0.7488594]
[1693853329722,0.05854585,25938.0,25937.0,0.7487394]
[1693853329930,0.05854585,25938.0,25937.0,0.7473594]
[1693853330140,0.05854585,25938.0,25937.0,0.7468794]
[1693853330340,0.05854585,25938.0,25937.0,0.7469394]
[1693853330576,0.05854585,25938.0,25937.0,0.6793794]
[1693853330785,0.05854585,25938.0,25937.0,0.7510194]
[1693853330970,0.05854585,25938.0,25937.0,0.7495794]
[1693853331135,0.05854585,25938.0,25937.0,0.7493994]
[1693853331344,0.05854585,25938.0,25937.0,0.7495794]
[1693853331551,0.05854585,25938.0,25937.0,0.7508994]
[1693853331755,0.05854585,25938.0,25937.0,0.7504194]
[1693853332074,0.05854585,25938.0,25937.0,0.7501794]
[1693853332204,0.05854585,25938.0,25937.0,0.7456194]
[1693853332411,0.05854585,25938.0,25937.0,0.7467594]
[1693853332612,0.05854585,25938.0,25937.0,0.7502394]
[1693853332812,0.05854585,25938.0,25937.0,0.7592394]
[1693853333075,0.05854585,25938.0,25937.0,0.7596594]
[1693853333272,0.05854585,25938.0,25937.0,0.7599594]
[1693853333509,0.05854585,25938.0,25937.0,0.7603794]
[1693853333725,0.05854585,25938.0,25937.0,0.7596594]
[1693853333923,0.05854585,25938.0,25937.0,0.94452192]
[1693853334123,0.05854585,25938.0,25937.0,0.96426192]
[1693853334349,0.03391385,25938.0,25937.0,0.96432192]
[1693853334487,0.03391385,25938.0,25937.0,0.96414192]
[1693853334677,0.03391385,25938.0,25937.0,0.96150192]
[1693853334888,0.03391385,25938.0,25937.0,0.82286379]
[1693853335087,0.03391385,25938.0,25937.0,0.83228379]
[1693853335290,0.03391385,25938.0,25937.0,0.83096379]
[1693853335553,0.03391385,25938.0,25937.0,0.83072379]
[1693853335739,0.03391385,25938.0,25937.0,0.83054379]
[1693853335938,0.03391385,25938.0,25937.0,0.96849677]
[1693853336119,0.03391385,25938.0,25937.0,0.96705628]
[1693853336441,0.03391385,25938.0,25937.0,0.96933628]
[1693853336571,0.03391385,25938.0,25937.0,0.96861628]
[1693853336776,0.03391385,25938.0,25937.0,0.96801628]
[1693853336978,0.03391385,25938.0,25937.0,0.96789628]
[1693853337186,0.03391385,25938.0,25937.0,0.82940379]
[1693853337383,0.03391385,25938.0,25937.0,0.82910379]
[1693853337589,0.03391385,25938.0,25937.0,0.82892379]
[1693853337849,0.03391385,25938.0,25937.0,0.82880379]
[1693853338051,0.03391385,25938.0,25937.0,0.96716276]
[1693853338254,0.03391385,25938.0,25937.0,0.82844379]
[1693853338427,0.03391385,25938.0,25937.0,0.96680184]
[1693853338758,0.03391385,25938.0,25937.0,0.96020184]
[1693853339076,0.03391385,25938.0,25937.0,0.96074184]
[1693853339192,0.03391385,25938.0,25937.0,0.96068184]
[1693853339395,0.03391385,25938.0,25937.0,0.96056184]
[1693853339615,0.03391385,25938.0,25937.0,0.96038184]
[1693853339824,0.03391385,25938.0,25937.0,0.96020184]
[1693853340022,0.03391385,25938.0,25937.0,0.96008184]
[1693853340228,0.03391385,25938.0,25937.0,0.95996184]
[1693853340567,0.03391385,25938.0,25937.0,0.95798184]
[1693853340768,0.03391385,25938.0,25937.0,0.96356184]
[1693853340920,0.03391385,25938.0,25937.0,0.96824184]
[1693853341276,0.03391385,25938.0,25937.0,0.96722184]
[1693853341435,0.03391385,25938.0,25937.0,0.96662184]
[1693853341629,0.03391385,25938.0,25937.0,0.96644184]
[1693853341838,0.03391385,25938.0,25937.0,0.96302184]
[1693853342041,0.03391385,25938.0,25937.0,0.96494184]
[1693853342265,0.03391385,25938.0,25937.0,0.96560184]
[1693853342484,0.03391385,25938.0,25937.0,0.96590184]
[1693853342686,0.03391385,25938.0,25937.0,0.96758184]
[1693853342890,0.03391385,25938.0,25937.0,0.96818184]
[1693853343091,0.03391385,25938.0,25937.0,0.96590184]
[1693853343295,0.03391385,25938.0,25937.0,0.96578184]
[1693853343496,0.03391385,25938.0,25937.0,0.97358184]
[1693853343697,0.03391385,25938.0,25937.0,0.83294379]
[1693853343893,0.03391385,25938.0,25937.0,0.83348379]
[1693853344272,0.03391385,25938.0,25937.0,0.83330379]
[1693853344474,0.03391385,25938.0,25937.0,0.97175632]
[1693853344674,0.03391385,25938.0,25937.0,0.97139732]
[1693853344875,0.03391385,25938.0,25937.0,0.97199732]